Cogmind - Beta 15 @@@ ROGUE MODE // 2025.06.17 @ 21:17:38 Player: Envian Result: Self-destructed Performance ------------- Evolutions (4) 2000 Regions Visited (4) 800 Robots Destroyed (38) 190 Value Destroyed (1056) 1056 Prototype IDs (0) 0 Alien Tech Used (0) 0 Bonus (37) 37 TOTAL SCORE: 4083 Bonus ------- Follower Combat Kills 37 Cogmind --------- Core Integrity 661/850 Matter 267/300 Energy 73/290 System Corruption 13% Temperature Cool (9) Movement Core (350) Ox6 Location -6/Factory Parts ------- > --- POWER (1) -------- Improved Deuterium Engine > --- PROPULSION (4) --- (None) > --- UTILITY (7) ------ Advanced Heat Sink Medium Storage Unit Weight Redist. System Core Analyzer > --- WEAPON (3) ------- (None) > --- INVENTORY (10) --- Ion Engine Light Treads Light Treads Improved Light Armor Plating Datajack Heavy Mace Peak State ------------ > --- POWER ------------ Light Nuclear Core > --- PROPULSION ------- Light Treads Light Treads Carbon-fiber Leg Carbon-fiber Leg > --- UTILITY ---------- Improved Heat Sink Advanced Heat Sink Medium Storage Unit Weight Redist. System Structural Scanner Core Analyzer Hardened Medium Armor Plating > --- WEAPON ----------- Assault Rifle Heavy Assault Rifle Improved Datajack > --- INVENTORY -------- Ion Engine Improved Deuterium Engine Light Treads Light Treads Improved Light Armor Plating Heavy Laser Datajack Heavy Mace [Rating: 37] Favorites ----------- Power Ion Engine Engine Ion Engine Power Core Light Nuclear Core Propulsion Light Treads Treads Light Treads Leg Carbon-fiber Leg Utility Medium Storage Unit Device Structural Scanner Storage Medium Storage Unit Processor Core Analyzer Protection Hardened Medium Armor Plating Weapon Assault Rifle Energy Gun EM Pulse Gun Ballistic Gun Assault Rifle Special Melee Weapon Improved Datajack Build | -11 -10 -10 -8 -6 ------- Run | Yrd Mat Sub Rec Fac Slots Evolved 8 | . . . . 8 Power . | . . . . . Propulsion 2 | . . . . 2 Utility 5 | . . . . 5 Weapon 1 | . . . . 1 Parts Attached 30 | 6 3 5 3 13 Power 4 | 1 . 1 . 2 Engine 3 | 1 . 1 . 1 Core 1 | . . . . 1 Reactor . | . . . . . Propulsion 8 | 2 . 2 1 3 Treads 6 | 2 . 2 1 1 Leg 2 | . . . . 2 Wheel . | . . . . . Hover . | . . . . . Flight . | . . . . . Utility 9 | 1 2 . . 6 Device 5 | . 1 . . 4 Storage 2 | 1 1 . . . Processor 1 | . . . . 1 Hackware . | . . . . . Protection 1 | . . . . 1 Artifact . | . . . . . Weapon 9 | 2 1 2 2 2 Energy Gun 3 | 2 . . . 1 Energy Cannon . | . . . . . Ballistic Gun 4 | . 1 2 1 . Ballistic Cannon . | . . . . . Launcher . | . . . . . Special Weapon . | . . . . . Impact Weapon . | . . . . . Slashing Weapon . | . . . . . Piercing Weapon . | . . . . . Special Melee Weapon 2 | . . . 1 1 Unidentified Prototypes . | . . . . . Parts Lost 22 | . 1 5 2 14 Power 2 | . . 1 . 1 Propulsion 8 | . . 2 1 5 Utility 4 | . . . . 4 Weapon 8 | . 1 2 1 4 Highest Loss Streak 12 | . 1 3 2 12 To Critical Strikes . | . . . . . Average Backups 5 | . 6 5 4 5 Power 1 | . . 1 1 1 Propulsion 1 | . 1 1 . 1 Utility . | . . 1 1 . Weapon 1 | . 1 1 1 1 Tool/Special . | . . . . . Unused Backups 4 | . . . . 4 Power . | . . . . . Propulsion 2 | . . . . 2 Utility 1 | . . . . 1 Weapon 1 | . . . . 1 Tool/Special . | . . . . . Average Slot Usage (%) 90 | . 87 97 98 77 Engine 11 | . 14 13 14 . Treads 25 | . 28 26 27 10 Device 9 | . 1 14 14 23 Storage 12 | . 14 14 14 6 Energy Gun 9 | . 20 5 . . Ballistic Gun 13 | . 7 22 20 12 Special Melee Weapon 2 | . . . 6 5 Peak Build Rating 37 | 6 8 8 9 37 Average Rating 9 | 4 6 7 7 25 On Entrance 5 | . 6 8 7 8 Naked Turns . | . . . . . Heaviest Build 36 | 14 20 20 21 36 Greatest Support 46 | 40 40 40 40 46 Greatest Overweight (x) 1 | . . . . 1 Average Overweight (x) . | . . . . . Largest Inventory Capacity 10 | 8 10 10 10 10 Average Capacity 9 | 6 9 10 10 10 Most Carried 10 | 5 9 8 7 10 Average Carried 5 | . 6 5 4 5 Final Capacity 10 | 8 10 10 10 10 Final Carried 8 | . 8 3 7 6 Class Distribution -------------------- 66% | Mutant 20% | Commander-Mutant 12% | Scavenger-Mutant Dominant Class ---------------- Mutant | -10/Materials Mutant | -10/Subcaves Commander-Mutant | -8/Recycling Commander-Mutant | -6/Factory Resources | -11 -10 -10 -8 -6 ----------- Run | Yrd Mat Sub Rec Fac Matter Collected 868 | 240 92 93 206 237 Remotely . | . . . . . Salvage Created 1610 | . 622 93 314 581 Parts 92 | . 51 7 11 23 Haulers Intercepted 2 | . 2 . . . Recyclers Shooed 8 | . . . 5 3 Parts Field Recycled . | . . . . . Retrieved Matter . | . . . . . Parts Self-Destructed 11 | . . 11 . . Prevented . | . . . . . Kills | -11 -10 -10 -8 -6 ------- Run | Yrd Mat Sub Rec Fac Combat Hostiles Destroyed 24 | . 10 4 5 5 Guns 23 | . 9 4 5 5 AOE 1 | . 1 . . . Classes Destroyed 10 | . 6 1 2 1 Hauler 2 | . 2 . . . Recycler 4 | . 1 . 1 2 Operator 4 | . 3 . . 1 Turret 2 | . . 2 . . Watcher 2 | . 2 . . . Swarmer 8 | . 4 4 . . Grunt 8 | . 6 . . 2 Brawler 1 | . . . . 1 Sentry 4 | . . . 2 2 Programmer 3 | . . . 3 . Best Kill Streak 4 | . 3 4 3 3 Combat Bots Only 4 | . 3 4 3 2 Max Kills in Single Turn 1 | . 1 1 1 1 Gunslinging . | . . . . . Exploded 1 | . 1 . . . Melee . | . . . . . Uniques/NPCs Destroyed . | . . . . . Combat | -11 -10 -10 -8 -6 -------- Run | Yrd Mat Sub Rec Fac Hostile Shots Fired 276 | . 51 86 29 110 Missed 79 | . 11 28 10 30 Hits 197 | . 40 58 19 80 Melee 6 | . . . . 6 Projectile 191 | . 40 58 19 74 Critical Strikes 9 | . 1 1 2 5 Damage Taken 2316 | . 420 397 274 1225 Core 307 | . 83 23 12 189 Absorbed by Shields 17 | . . . 3 14 Core Remaining (%) 76 | 100 . . 52 . Volleys Fired 119 | . 40 18 26 35 Largest 2 | . 2 2 2 2 Hottest 92 | . 80 60 43 92 Shots Fired 225 | . 80 36 40 69 Gun 225 | . 80 36 40 69 Cannon . | . . . . . Launcher . | . . . . . Special . | . . . . . Kinetic 153 | . 18 34 40 61 Thermal 8 | . . . . 8 Explosive . | . . . . . Electromagnetic 64 | . 62 2 . . Robot Hit Streak 9 | . 6 6 9 9 Robot Miss Streak 4 | . 4 3 2 3 Penetration Max . | . . . . . Secondary Targets 3 | . . 3 . . Max Gunslinging Chain 1 | . . 1 . . Shots Hit Robots 177 | . 46 20 59 52 Core Hits 74 | . 25 11 11 27 Critical Kills . | . . . . . Critical Parts Destroyed 1 | . . 1 . . Critical Strikes 3 | . 2 1 . . Destroy 1 | . . 1 . . Corrupt 2 | . 2 . . . Melee Attacks 34 | . . . 31 3 Impact . | . . . . . Slashing . | . . . . . Piercing . | . . . . . Sneak Attacks 27 | . . . 26 1 Combat Hostiles 4 | . . . 4 . Follow-up Attacks . | . . . . . Damage Inflicted 2227 | . 699 290 444 794 Guns 2120 | . 611 272 443 794 Cannons . | . . . . . Explosions 88 | . 88 . . . Melee . | . . . . . Ramming 19 | . . 18 1 . Kinetic 1509 | . 116 250 443 700 Thermal 182 | . 88 . . 94 Explosive . | . . . . . Electromagnetic 517 | . 495 22 . . Impact . | . . . . . Slashing . | . . . . . Piercing . | . . . . . Highest Corruption 13 | . . . . 13 Average Corruption 11 | . . . . 11 Corruption Purged . | . . . . . Corruption Blocked . | . . . . . Effects 2 | . . . . 2 Matter Fused 1 | . . . . 1 Weapon Failures 1 | . . . . 1 Overload Shots . | . . . . . Overflow Damage . | . . . . . Projectiles . | . . . . . Explosions . | . . . . . Melee . | . . . . . Knockbacks . | . . . . . Impact . | . . . . . Kinetic . | . . . . . Secondary . | . . . . . Self-Inflicted Damage . | . . . . . Shots . | . . . . . Rammed 4 | . . 3 1 . Targets Rammed 5 | . . 4 1 . Kicked . | . . . . . Crushed 1 | . . 1 . . Highest Temperature 144 | . 144 . 20 10 Average Temperature 36 | . 39 . 7 6 Received Heat Transfer 904 | . 165 168 63 508 Siege Activations . | . . . . . Martial Activations . | . . . . . Shielding Activations . | . . . . . Robots Disrupted . | . . . . . Combat Hostiles . | . . . . . Robots Corrupted . | . . . . . Combat Hostiles . | . . . . . Parts Fried 1 | . 1 . . . Impact Corruptions . | . . . . . Robots Melted . | . . . . . Combat Hostiles . | . . . . . Parts Melted 1 | . . . . 1 Heat Transferred 235 | . 50 . . 185 Parts Sabotaged . | . . . . . Parts Stolen . | . . . . . Parts Stripped . | . . . . . Power Chain Reactions 2 | . 2 . . . Alert | -11 -10 -10 -8 -6 ------- Run | Yrd Mat Sub Rec Fac Maximum Alert Level . | . . . . . Low Security (%) 100 | 100 100 . 100 100 Level 1 . | . . . . . Level 2 . | . . . . . Level 3 . | . . . . . Level 4 . | . . . . . Level 5 . | . . . . . High Security . | . . . . . Max Security . | . . . . . Peak Influence 113 | . 113 . 40 55 Initial 25 | . . . 25 . Average 15 | . 24 . 5 12 Influence Increases 862 | . 361 180 112 209 Destroy 0b10 Robot/C 540 | . 200 120 100 120 Destroy 0b10 Robot/NC 60 | . 40 . 5 15 Destroy Leader 108 | . 58 . . 50 Allied During Kill 13 | . . . 4 9 Successful Hack 21 | . 5 . 2 14 Disable Machine 30 | . 30 . . . Destroy Structure 15 | . 13 . 1 1 Lose Combat Pursuer 75 | . 15 60 . . Influence Decreases 852 | . 256 231 166 199 Entered New Map 80 | . . 51 29 . Time Decay 620 | . 256 130 117 117 Lost Part 128 | . . 50 20 58 Lost Ally 24 | . . . . 24 Squads Dispatched 4 | . 2 . . 2 Investigation 3 | . 2 . . 1 Extermination . | . . . . . Reinforcement 1 | . . . . 1 Assault . | . . . . . Garrison . | . . . . . Intercept . | . . . . . Searches Triggered . | . . . . . Construction Impeded . | . . . . . Haulers Reinforced . | . . . . . Active Scanning Responses . | . . . . . Cargo Convoy Interrupts . | . . . . . Stealth | -11 -10 -10 -8 -6 --------- Run | Yrd Mat Sub Rec Fac Distress Signals 2 | . 1 . . 1 Communications Jammed . | . . . . . Distress Signals . | . . . . . Times Spotted 40 | . 17 8 6 9 Peak Tracking Total 6 | . 3 6 3 4 Tactical Retreats 3 | . 1 2 . . Traps | -11 -10 -10 -8 -6 ------- Run | Yrd Mat Sub Rec Fac Traps Triggered 1 | . 1 . . . Indirectly . | . . . . . Trap Hack Attempts . | . . . . . Triggered . | . . . . . Disarmed . | . . . . . Reprogrammed . | . . . . . Reused . | . . . . . Traps Extracted . | . . . . . Installed . | . . . . . Triggered . | . . . . . Machines | -11 -10 -10 -8 -6 ---------- Run | Yrd Mat Sub Rec Fac Machines Disabled 4 | . 2 2 . . Max in Single Turn 1 | . 1 1 . . Machines Repaired . | . . . . . Machines Dismantled . | . . . . . Machines Sabotaged . | . . . . . Overloaded Fab Kills . | . . . . . Hacking | -11 -10 -10 -8 -6 --------- Run | Yrd Mat Sub Rec Fac Machines Accessed 17 | . 7 1 6 3 Terminals 14 | . 7 . 5 2 Fabricators . | . . . . . Repair Stations 1 | . . . . 1 Recycling Units 1 | . . . 1 . Scanalyzers . | . . . . . Garrison Access . | . . . . . Total Hacks 50 | . 22 5 15 8 Successful 19 | . 5 5 6 3 Failed 31 | . 17 . 9 5 Catastrophic 5 | . 4 . 1 . Database Lockouts . | . . . . . Manual 39 | . 22 . 13 4 Terminals 39 | . 22 . 12 5 Fabricators . | . . . . . Repair Stations 3 | . . . . 3 Recycling Units 3 | . . . 3 . Scanalyzers . | . . . . . Garrison Access . | . . . . . Terminal Hacks 5 | . . 5 . . Record 5 | . . 5 . . Fabricator Hacks . | . . . . . Repair Station Hacks 1 | . . . . 1 Scan Component 1 | . . . . 1 Recycling Unit Hacks . | . . . . . Scanalyzer . | . . . . . Garrison Access Hacks . | . . . . . Unauthorized Hacks 10 | . 5 . 3 2 Terminals 10 | . 5 . 3 2 Botnet 9 | . 4 . 3 2 Operators 1 | . 1 . . . Fabricators . | . . . . . Repair Stations . | . . . . . Recycling Units . | . . . . . Scanalyzers . | . . . . . Garrison Access . | . . . . . Data Cores Recovered 3 | . 3 . . . Used . | . . . . . Hacking Detections 13 | . 7 . 3 3 Full Trace Events 3 | . 2 . . 1 Feedback Events . | . . . . . Feedback Blocked . | . . . . . Robot Schematics Acquired . | . . . . . Robots Built . | . . . . . Authchips . | . . . . . Time . | . . . . . Total Robot Build Rating . | . . . . . Part Schematics Acquired . | . . . . . Parts Built . | . . . . . Authchips . | . . . . . Time . | . . . . . Total Part Build Rating . | . . . . . Parts Repaired . | . . . . . Time . | . . . . . Parts Recycled . | . . . . . Recycled Matter . | . . . . . Retrieved Matter . | . . . . . Retrieved Components . | . . . . . Parts Scanalyzed . | . . . . . Part Schematics Acquired . | . . . . . Parts Damaged . | . . . . . Bothacking | -11 -10 -10 -8 -6 ------------ Run | Yrd Mat Sub Rec Fac Used RIF Installer . | . . . . . Robots Hacked 4 | . . . 1 3 Non-combat 3 | . . . 1 2 Combat 1 | . . . . 1 Robot Hacks Applied 4 | . . . 1 3 parse_system 1 | . . . . 1 find_recycling 3 | . . . 1 2 Relay Couplers Released . | . . . . . Fabnet Peak Effective % . | . . . . . Robots Rewired 12 | . . . 12 . Allies Hacked . | . . . . . Hacks Repelled . | . . . . . Allies | -11 -10 -10 -8 -6 -------- Run | Yrd Mat Sub Rec Fac Total Allies 12 | . . . 12 . Largest Group 12 | . . . 12 11 Highest-Rated Group 138 | . . . 138 128 Highest-Rated Ally 27 | . . . 27 27 Total Orders . | . . . . . Ally Attacks 13 | . . . 3 10 Total Damage 266 | . . . 56 210 Kills 2 | . . . . 2 Allies Corrupted . | . . . . . Allies Melted 1 | . . . . 1 Intel | -11 -10 -10 -8 -6 ------- Run | Yrd Mat Sub Rec Fac Active Infowar (turns) 1655 | . 166 269 810 410 Structural 1655 | . 166 269 810 410 Robot Analysis Total . | . . . . . Derelict Logs Recovered . | . . . . . Drone Launches . | . . . . . Drone Recoveries . | . . . . . Exploration | -11 -10 -10 -8 -6 ------------- Run | Yrd Mat Sub Rec Fac Turns Passed 2788 | 57 1234 269 810 418 Spaces Moved 1412 | 35 668 128 409 172 Core 9 | 9 . . . . Treads 1338 | 26 668 128 409 107 Legs 65 | . . . . 65 Wheels . | . . . . . Hover . | . . . . . Flight . | . . . . . Fastest Speed 50 | 50 160 160 160 120 Average Speed 157 | 131 160 160 160 146 Slowest Speed 240 | 160 160 160 160 240 Overloaded Moves . | . . . . . Propulsion Burnouts . | . . . . . Robots Hopped . | . . . . . Potential Cave-ins . | . . . . . Cave-ins Triggered . | . . . . . Exploration Rate (%) 35 | 3 90 10 69 5 Regions Visited 4 Branch Regions 2 Pre-discovered Areas 1 | . . 1 . . Known Exits Taken . | . . . . . Unknown Exits Taken 4 | 1 1 1 1 . Scrap Searched . | . . . . . Spaces Dug . | . . . . . Terrain Destroyed 11 | . 11 . . . Melee . | . . . . . Projectile . | . . . . . AOE 11 | . 11 . . . Terrain Rammed . | . . . . . Walls Destroyed . | . . . . . Machines Disabled . | . . . . . Actions | -11 -10 -10 -8 -6 --------- Run | Yrd Mat Sub Rec Fac Total 1725 | 46 753 154 506 266 Wait 87 | . 31 . 25 31 Move 1408 | 34 667 127 408 172 Hop . | . . . . . Pick Up 34 | 6 11 . 6 11 Fast Attach . | . . . . . Attach 27 | 6 2 5 2 12 Detach . | . . . . . Swap 8 | . 1 . 5 2 Drop 1 | . 1 . . . Fire 119 | . 40 18 26 35 Melee 34 | . . . 31 3 Ram . | . . . . . Kick . | . . . . . Crush 5 | . . 4 1 . Escape Stasis . | . . . . . Rewire 2 | . . . 2 . Trap . | . . . . . Miscellaneous . | . . . . . Route ------- -11/Scrapyard -10/Materials (discovered 5 exits: [*Mat x3] / [*Min] / *Sub) -10/Subcaves -8/Recycling -6/Factory History --------- Turn | Location | Event 6 | -11/Scrapyard | Discovered new exit (range 15) 58 | -11/Scrapyard | Entered Materials 208 | -10/Materials | Discovered new exit (range 6) 322 | -10/Materials | Build established: Mutant 377 | -10/Materials | Discovered new exit (range 3) 558 | -10/Materials | Derelicts attacked the area 584 | -10/Materials | Discovered new exit (range 13) 765 | -10/Materials | Discovered new exit (range 15) 1011 | -10/Materials | Discovered new exit (range 10) 1292 | -10/Materials | Entered Subcaves 1331 | -10/Subcaves | Visited Clippyterm 1336 | -10/Subcaves | Learned location of Extension (-6) 1336 | -10/Subcaves | Learned Factory trap positions 1422 | -10/Subcaves | Discovered new exit (range 14) 1438 | -10/Subcaves | Lost 3 parts (1p1n1w) 1561 | -10/Subcaves | Entered Recycling 2285 | -8/Recycling | Discovered new exit (range 14) 2328 | -8/Recycling | Build established: Commander-Mutant 2371 | -8/Recycling | Entered Factory 2371 | -6/Factory | Accompanied by 11 allies 2371 | -6/Factory | Evolved 8 slots: Propulsion x2, Utility x5, Weapon x1 2372 | -6/Factory | Loaded intel: 91 trap records 2643 | -6/Factory | Lost 4 allies 2766 | -6/Factory | System corruption reached 10% 2789 | -6/Factory | Lost 6 allies 2789 | -6/Factory | Self-destructed Last Messages --------------- 02764_ Imp. Datajack destroyed. 02765_ System corrupted: Hvy. Assault Rifle jammed. 02765_ Imp. Heat Sink destroyed. 02765_ System corrupted by crushing effect (+4). 02767_ Lgt. Nuclear Core destroyed. 02768_ B-48 Gladiator destroyed. 02769_ Critical hit (Burn: +37). 02772_ K-01 Serf collects debris. 02774_ Lgt. Treads destroyed. 02775_ Critical hit (Burn: +37). 02775_ K-01 Serf collects debris. 02777_ Lgt. Treads destroyed. 02779_ Carbon-fiber Leg destroyed. 02781_ Structural Scanner destroyed. 02783_ K-01 Serf collects debris. 02785_ G-50 Soldier destroyed. 02785_ Hvy. Laser destroyed. 02786_ K-01 Serf collects debris. 02787_ Hvy. Assault Rifle destroyed. 02789_ K-01 Serf collects debris. Map ----- +----------------------------------------------------+ | ?????????????????????????????????????????????????? | | ###??????????????????????????????????????????????? | | ## ## ???????????????????????????????????????????? | | = ## ???????????????????????????????????????????? | | / ???????????????????????????????????????????? | | "" ##????????????????????????????????????????????? | | "" ##????????????????????????????????????????????? | | "" ##????????????????????????????????????????????? | | ##????????????????????????????????????????????? | | "" ##????????????????????"???????????????????????? | | "" ##????????????????????R???????????????????????? | | "" ##????????????????????"???????????????????????? | | ##??????????????? ?????????????????????? | | #####???????????????+####;### ???????????? | | #####??????????????? #######+####???????????? | | ######???????????????? ##???????????? | | ###### ???????????????? ##???????????? | | ^ + ???????????????? ##???????????? | | ###### ????????????????? ##???????????? | | ###### ?????????? # ???????????? | | #######+#####??????????## # ???????????? | | #####???????## # ???????????? | | ##############=gk # ???????????? | | """"""""" # ##########!gk # ???????????? | | + %*%== "+ ???????????? | | """"""""" # #####+####@##### "%# ???????????? | | ## #### !#= ## # ???????????? | | #####+####### #### "" # ##?? # ???????????? | | ### ##### ####! """ # ##???? # ???????????? | | " ##### #### R" # ##???? # ???????????? | | "T % / """ # ##???? ##???????????? | | #####+#### # ##??????????????????? | | ### ## ######## ##??????????????????? | | #####/####!! %!"######## ##??????????????????? | | ? #!! % "##????## ##^?????????????????? | | # % "##????########??????????????????? | | # T##????########????^?????????????? | | # """ "##????????????^^??^?????????????? | | ########## """ "##??????????????????????????????? | | + %"""%"##????????###?^?????????????????? | | ?######### ![ !% ### ?????T ##???????????????????? | | ?######### !*!= ### ?????????????????? | | ????????## ![% + ! ?????????????????? | | ????????###+##!##### ?????????????????? | | ????????### ######## ????#####???????????????????? | | ????????????#####????????#####???????????????????? | | ??????????????????????^??????????????????????????? | | ?????????????????^???????????????????????????????? | | ?????????????????????????????????????????????????? | | ?????????????????????????????^???????????????????? | +----------------------------------------------------+ Best States ------------- Heat Dissipation 70 Energy Generation 14 Energy Capacity 250 Matter Stores 300 Matter Capacity 300 Sight Range 16 Terrain Scan Density 10 Additional Mass Support 6 Armor Coverage 225 Evasion (%) 55 Core Analysis 6 Recoil Reduction 2 Item Schematics ----------------- None Robot Schematics ------------------ None Fabricated ------------ Nothing Repaired ---------- Nothing Alien Tech Used ----------------- None Achievements -------------- None Challenges ------------ None Game ------ Seed ExplosiveMultireflexBattery Manual? 0 Play Time 00:30:10 Cumulative 38.1 hours Start 2025.06.17 @ 17:16:43 End 2025.06.17 @ 21:17:38 Sessions 3 Manual Loads 0 Difficulty Rogue Special Mode None Game No. 48 Rogue 48 Adventurer 0 Explorer 0 Win Type - Total 1 Types 1/0/0/0/0/0/0/0/0/0 Lore% 26 Gallery% 28 Achievement% 32 Wizard Run 0 Options --------- Layout 0 ASCII 0 Keyboard 0 Movement Numpad Keybinds 0 Fullscreen 1 Font 24/Smallcaps Map View 76x50 Zoom Use 0% Tactical HUD 1 Map Filters NONE Filters NONE Steam 1 RUN: 49015424-a3f0-4568-be5f-3f08125e15ca